[Event "January 9 Early 2024"]
[Site "https://www.chess.com"]
[Date "2024.01.11"]
[Round "5"]
[White "Llorente Zaro, Alfonso"]
[Black "Kanyamarala, Trisha"]
[Result "0-1"]
[Board "170"]
[TimeControl "180+1"]
[WhiteFideId "2254131"]
[BlackFideId "45004722"]
[WhiteElo "2691"]
[BlackElo "2521"]
[WhiteTeam "ESP"]
[BlackTeam "IRL"]
[WhiteClock "0:00:02"]
[BlackClock "0:00:21"]

1. e4 {[%clk 0:03:00]}  c5 {[%clk 0:02:57]} 2. Nf3 {[%clk 0:02:59]}  d6 {[%clk 0:02:57]} 3. d4 {[%clk 0:02:58]}  cxd4 {[%clk 0:02:55]} 4. Nxd4 {[%clk 0:02:59]}  Nf6 {[%clk 0:02:54]} 5. Nc3 {[%clk 0:02:59]}  e5 {[%clk 0:02:52]} 6. Bb5+ {[%clk 0:02:57]}  Bd7 {[%clk 0:02:48]} 7. Nf5 {[%clk 0:02:42]}  a6 {[%clk 0:02:46]} 8. Bxd7+ {[%clk 0:02:40]}  Qxd7 {[%clk 0:02:46]} 9. Ne3 {[%clk 0:02:17]}  Nc6 {[%clk 0:02:44]} 10. Ned5 {[%clk 0:02:11]}  Nxd5 {[%clk 0:02:43]} 11. Nxd5 {[%clk 0:02:12]}  Qd8 {[%clk 0:02:41]} 12. Be3 {[%clk 0:02:11]}  Rc8 {[%clk 0:02:34]} 13. Qg4 {[%clk 0:02:09]}  Ne7 {[%clk 0:02:21]} 14. O-O-O {[%clk 0:01:46]}  Nxd5 {[%clk 0:02:18]} 15. Rxd5 {[%clk 0:01:47]}  Qc7 {[%clk 0:02:15]} 16. c3 {[%clk 0:01:45]}  h5 {[%clk 0:02:09]} 17. Qg3 {[%clk 0:01:39]}  Qc4 {[%clk 0:02:09]} 18. Qh3 {[%clk 0:01:21]}  Rc6 {[%clk 0:02:01]} 19. Rhd1 {[%clk 0:01:19]}  Be7 {[%clk 0:01:51]} 20. a3 {[%clk 0:00:46]}  Qxe4 {[%clk 0:01:42]} 21. R5d3 {[%clk 0:00:37]}  Qg4 {[%clk 0:01:34]} 22. Bd2 {[%clk 0:00:31]}  Qxh3 {[%clk 0:01:24]} 23. Rxh3 {[%clk 0:00:32]}  g6 {[%clk 0:01:24]} 24. f4 {[%clk 0:00:30]}  O-O {[%clk 0:01:20]} 25. f5 {[%clk 0:00:28]}  Kg7 {[%clk 0:01:16]} 26. Rf1 {[%clk 0:00:25]}  d5 {[%clk 0:01:07]} 27. Rd3 {[%clk 0:00:21]}  Rd8 {[%clk 0:01:04]} 28. Kd1 {[%clk 0:00:19]}  e4 {[%clk 0:01:03]} 29. Rg3 {[%clk 0:00:17]}  d4 {[%clk 0:01:00]} 30. fxg6 {[%clk 0:00:10]}  fxg6 {[%clk 0:00:56]} 31. cxd4 {[%clk 0:00:07]}  Rxd4 {[%clk 0:00:56]} 32. Ke1 {[%clk 0:00:05]}  Bf6 {[%clk 0:00:35]} 33. Bc3 {[%clk 0:00:04]}  Rd7 {[%clk 0:00:32]} 34. Rxf6 {[%clk 0:00:02]}  Rxf6 {[%clk 0:00:32]} 35. Rg5 {[%clk 0:00:02]}  Kf7 {[%clk 0:00:29]} 36. Bxf6 {[%clk 0:00:02]}  Kxf6 {[%clk 0:00:29]} 37. Rc5 {[%clk 0:00:02]}  Rd3 {[%clk 0:00:27]} 38. Ke2 {[%clk 0:00:02]}  Rb3 {[%clk 0:00:26]} 39. Rc2 {[%clk 0:00:02]}  Kf5 {[%clk 0:00:24]} 40. g3 {[%clk 0:00:02]}  Kg4 {[%clk 0:00:24]} 41. Kf2 {[%clk 0:00:02]}  Kh3 {[%clk 0:00:21]} 0-1

[Event "January 9 Early 2024"]
[Site "https://www.chess.com"]
[Date "2024.01.11"]
[Round "5"]
[White "Vakhidov, Shahzod"]
[Black "Materia, Marco"]
[Result "0-1"]
[Board "172"]
[TimeControl "180+1"]
[WhiteFideId "14205270"]
[BlackFideId "45150451"]
[WhiteElo "2516"]
[BlackElo "2813"]
[WhiteTeam "UZB"]
[BlackTeam "FRA"]
[WhiteClock "0:00:04"]
[BlackClock "0:00:46"]

1. d4 {[%clk 0:02:58]}  Nf6 {[%clk 0:03:00]} 2. Nf3 {[%clk 0:02:58]}  d5 {[%clk 0:02:59]} 3. c4 {[%clk 0:02:57]}  e6 {[%clk 0:02:58]} 4. g3 {[%clk 0:02:57]}  Be7 {[%clk 0:02:57]} 5. Bg2 {[%clk 0:02:56]}  O-O {[%clk 0:02:58]} 6. O-O {[%clk 0:02:56]}  Nbd7 {[%clk 0:02:58]} 7. Qc2 {[%clk 0:02:56]}  b6 {[%clk 0:02:57]} 8. Nbd2 {[%clk 0:02:52]}  Bb7 {[%clk 0:02:56]} 9. Rd1 {[%clk 0:02:46]}  c5 {[%clk 0:02:52]} 10. b3 {[%clk 0:02:35]}  Rc8 {[%clk 0:02:51]} 11. Bb2 {[%clk 0:02:29]}  dxc4 {[%clk 0:02:49]} 12. bxc4 {[%clk 0:02:00]}  cxd4 {[%clk 0:02:48]} 13. Bxd4 {[%clk 0:01:56]}  Qc7 {[%clk 0:02:46]} 14. Qb2 {[%clk 0:01:54]}  Rfd8 {[%clk 0:02:44]} 15. Rac1 {[%clk 0:01:54]}  h6 {[%clk 0:02:36]} 16. Nb3 {[%clk 0:01:51]}  Be4 {[%clk 0:02:32]} 17. Nbd2 {[%clk 0:01:40]}  Bc6 {[%clk 0:02:31]} 18. Nb3 {[%clk 0:01:29]}  Qb7 {[%clk 0:02:29]} 19. Nh4 {[%clk 0:01:29]}  Bxg2 {[%clk 0:02:29]} 20. Nxg2 {[%clk 0:01:30]}  Bf8 {[%clk 0:02:22]} 21. Ne3 {[%clk 0:01:27]}  Ne4 {[%clk 0:02:21]} 22. f3 {[%clk 0:01:18]}  Nec5 {[%clk 0:02:18]} 23. Ng4 {[%clk 0:01:12]}  h5 {[%clk 0:02:11]} 24. Nf2 {[%clk 0:01:10]}  Qa6 {[%clk 0:01:49]} 25. Kg2 {[%clk 0:00:58]}  Nb7 {[%clk 0:01:36]} 26. Qd2 {[%clk 0:00:53]}  Rxc4 {[%clk 0:01:27]} 27. Qg5 {[%clk 0:00:39]}  Rxc1 {[%clk 0:01:25]} 28. Nxc1 {[%clk 0:00:38]}  Qa5 {[%clk 0:01:21]} 29. Qxa5 {[%clk 0:00:25]}  Nxa5 {[%clk 0:01:20]} 30. Be5 {[%clk 0:00:25]}  Nb7 {[%clk 0:01:03]} 31. Bc7 {[%clk 0:00:25]}  Rc8 {[%clk 0:01:03]} 32. Rxd7 {[%clk 0:00:22]}  Nc5 {[%clk 0:01:04]} 33. Rd8 {[%clk 0:00:17]}  Rxc7 {[%clk 0:01:05]} 34. Ncd3 {[%clk 0:00:16]}  Nxd3 {[%clk 0:01:04]} 35. Nxd3 {[%clk 0:00:16]}  g6 {[%clk 0:01:03]} 36. Ra8 {[%clk 0:00:12]}  Kg7 {[%clk 0:01:03]} 37. f4 {[%clk 0:00:12]}  Be7 {[%clk 0:01:03]} 38. Kf3 {[%clk 0:00:13]}  Bf6 {[%clk 0:00:56]} 39. h3 {[%clk 0:00:13]}  a5 {[%clk 0:00:53]} 40. g4 {[%clk 0:00:13]}  hxg4+ {[%clk 0:00:52]} 41. hxg4 {[%clk 0:00:14]}  Rc2 {[%clk 0:00:53]} 42. g5 {[%clk 0:00:14]}  Ba1 {[%clk 0:00:52]} 43. a4 {[%clk 0:00:11]}  Rc4 {[%clk 0:00:51]} 44. Rb8 {[%clk 0:00:10]}  Rxa4 {[%clk 0:00:48]} 45. Rxb6 {[%clk 0:00:10]}  Ra2 {[%clk 0:00:47]} 46. Ra6 {[%clk 0:00:03]}  a4 {[%clk 0:00:46]} 47. Nc5 {[%clk 0:00:04]}  a3 {[%clk 0:00:47]} 48. Nxe6+ {[%clk 0:00:04]}  fxe6 {[%clk 0:00:46]} 0-1

[Event "January 9 Early 2024"]
[Site "https://www.chess.com"]
[Date "2024.01.11"]
[Round "5"]
[White "Keymer, Vincent"]
[Black "Shuvalova, Polina"]
[Result "1-0"]
[Board "173"]
[TimeControl "180+1"]
[WhiteFideId "12940690"]
[BlackFideId "24171760"]
[WhiteElo "3025"]
[BlackElo "2756"]
[WhiteTeam "GER"]
[BlackTeam "RUS"]
[WhiteClock "0:00:14"]
[BlackClock "0:00:04"]

1. Nf3 {[%clk 0:03:00]}  d5 {[%clk 0:02:59]} 2. e3 {[%clk 0:03:01]}  Nf6 {[%clk 0:03:00]} 3. c4 {[%clk 0:03:01]}  e6 {[%clk 0:03:00]} 4. Nc3 {[%clk 0:03:00]}  c5 {[%clk 0:03:00]} 5. cxd5 {[%clk 0:03:01]}  exd5 {[%clk 0:03:01]} 6. Bb5+ {[%clk 0:03:00]}  Nc6 {[%clk 0:03:01]} 7. Ne5 {[%clk 0:02:58]}  Bd7 {[%clk 0:03:01]} 8. Bxc6 {[%clk 0:02:57]}  bxc6 {[%clk 0:02:57]} 9. O-O {[%clk 0:02:57]}  Bd6 {[%clk 0:02:57]} 10. Nxd7 {[%clk 0:02:57]}  Nxd7 {[%clk 0:02:56]} 11. b3 {[%clk 0:02:51]}  O-O {[%clk 0:02:55]} 12. Ba3 {[%clk 0:02:48]}  Qc7 {[%clk 0:02:46]} 13. h3 {[%clk 0:02:47]}  a5 {[%clk 0:02:47]} 14. Na4 {[%clk 0:02:42]}  c4 {[%clk 0:02:28]} 15. Bxd6 {[%clk 0:02:32]}  Qxd6 {[%clk 0:02:29]} 16. bxc4 {[%clk 0:02:26]}  dxc4 {[%clk 0:02:26]} 17. Rc1 {[%clk 0:02:24]}  Ne5 {[%clk 0:02:20]} 18. f4 {[%clk 0:02:24]}  Nd3 {[%clk 0:02:14]} 19. Rxc4 {[%clk 0:02:24]}  Rad8 {[%clk 0:02:08]} 20. Qb1 {[%clk 0:01:32]}  c5 {[%clk 0:01:55]} 21. Rc3 {[%clk 0:01:13]}  h5 {[%clk 0:01:30]} 22. Rd1 {[%clk 0:01:07]}  h4 {[%clk 0:01:26]} 23. Nb2 {[%clk 0:01:04]}  Nxb2 {[%clk 0:00:58]} 24. Qxb2 {[%clk 0:01:05]}  Rfe8 {[%clk 0:00:56]} 25. Qc2 {[%clk 0:00:47]}  Rc8 {[%clk 0:00:29]} 26. Rc4 {[%clk 0:00:37]}  Qd5 {[%clk 0:00:23]} 27. a4 {[%clk 0:00:35]}  Re6 {[%clk 0:00:19]} 28. f5 {[%clk 0:00:30]}  Rec6 {[%clk 0:00:19]} 29. Rxh4 {[%clk 0:00:26]}  c4 {[%clk 0:00:18]} 30. Rd4 {[%clk 0:00:25]}  Qe5 {[%clk 0:00:17]} 31. Qe4 {[%clk 0:00:24]}  Qf6 {[%clk 0:00:12]} 32. Rc1 {[%clk 0:00:23]}  Rc5 {[%clk 0:00:12]} 33. Rcxc4 {[%clk 0:00:22]}  Rxc4 {[%clk 0:00:12]} 34. Rxc4 {[%clk 0:00:22]}  Rb8 {[%clk 0:00:12]} 35. Qf4 {[%clk 0:00:20]}  Rd8 {[%clk 0:00:12]} 36. d4 {[%clk 0:00:20]}  Qa6 {[%clk 0:00:11]} 37. Rc5 {[%clk 0:00:19]}  Qe2 {[%clk 0:00:10]} 38. f6 {[%clk 0:00:19]}  gxf6 {[%clk 0:00:08]} 39. Kh2 {[%clk 0:00:18]}  Kg7 {[%clk 0:00:07]} 40. Rc6 {[%clk 0:00:14]}  f5 {[%clk 0:00:04]} 41. Qg5+ {[%clk 0:00:14]} 1-0

[Event "January 9 Early 2024"]
[Site "https://www.chess.com"]
[Date "2024.01.11"]
[Round "5"]
[White "Haug, Havard"]
[Black "Swicarz, Maciej"]
[Result "1-0"]
[Board "175"]
[TimeControl "180+1"]
[WhiteFideId "1547887"]
[BlackFideId "1113585"]
[WhiteElo "2779"]
[BlackElo "2498"]
[WhiteTeam "NOR"]
[BlackTeam "POL"]
[WhiteClock "0:00:53"]
[BlackClock "0:00:09"]

1. e4 {[%clk 0:03:00]}  c5 {[%clk 0:02:59]} 2. c3 {[%clk 0:03:00]}  Nf6 {[%clk 0:02:59]} 3. e5 {[%clk 0:02:55]}  Nd5 {[%clk 0:02:59]} 4. Nf3 {[%clk 0:02:56]}  d6 {[%clk 0:02:59]} 5. exd6 {[%clk 0:02:51]}  Qxd6 {[%clk 0:02:55]} 6. d4 {[%clk 0:02:50]}  cxd4 {[%clk 0:02:55]} 7. Nxd4 {[%clk 0:02:50]}  a6 {[%clk 0:02:54]} 8. Be2 {[%clk 0:02:50]}  Nc6 {[%clk 0:02:51]} 9. O-O {[%clk 0:02:49]}  Nxd4 {[%clk 0:02:49]} 10. Qxd4 {[%clk 0:02:49]}  e5 {[%clk 0:02:48]} 11. Qd1 {[%clk 0:02:44]}  Be6 {[%clk 0:02:46]} 12. Nd2 {[%clk 0:02:43]}  Nf6 {[%clk 0:02:44]} 13. Nc4 {[%clk 0:02:38]}  Qc7 {[%clk 0:02:42]} 14. Ne3 {[%clk 0:02:36]}  Be7 {[%clk 0:02:32]} 15. Qc2 {[%clk 0:02:29]}  O-O {[%clk 0:02:31]} 16. b3 {[%clk 0:02:27]}  b5 {[%clk 0:02:29]} 17. c4 {[%clk 0:02:25]}  bxc4 {[%clk 0:02:26]} 18. Bxc4 {[%clk 0:02:24]}  Rfc8 {[%clk 0:02:15]} 19. Bb2 {[%clk 0:02:18]}  Bd6 {[%clk 0:02:02]} 20. Rac1 {[%clk 0:02:11]}  Bxc4 {[%clk 0:01:54]} 21. Nxc4 {[%clk 0:02:12]}  e4 {[%clk 0:01:48]} 22. Bxf6 {[%clk 0:02:11]}  Bxh2+ {[%clk 0:01:43]} 23. Kh1 {[%clk 0:02:10]}  gxf6 {[%clk 0:01:42]} 24. g3 {[%clk 0:02:11]}  Bxg3 {[%clk 0:01:35]} 25. fxg3 {[%clk 0:02:11]}  Kh8 {[%clk 0:01:26]} 26. Qf2 {[%clk 0:02:10]}  f5 {[%clk 0:01:21]} 27. Qb2+ {[%clk 0:01:56]}  Kg8 {[%clk 0:01:19]} 28. Rxf5 {[%clk 0:01:55]}  h6 {[%clk 0:01:15]} 29. Qf6 {[%clk 0:01:52]}  Qc6 {[%clk 0:01:00]} 30. Qxc6 {[%clk 0:01:46]}  Rxc6 {[%clk 0:01:00]} 31. Re5 {[%clk 0:01:42]}  Rd8 {[%clk 0:00:56]} 32. Rxe4 {[%clk 0:01:40]}  Rd2 {[%clk 0:00:55]} 33. Nxd2 {[%clk 0:01:27]}  Rxc1+ {[%clk 0:00:55]} 34. Kg2 {[%clk 0:01:27]}  Rc2 {[%clk 0:00:56]} 35. Rd4 {[%clk 0:01:26]}  Rxa2 {[%clk 0:00:56]} 36. Kh3 {[%clk 0:01:26]}  a5 {[%clk 0:00:53]} 37. Rd5 {[%clk 0:01:20]}  a4 {[%clk 0:00:51]} 38. bxa4 {[%clk 0:01:02]}  Rxa4 {[%clk 0:00:50]} 39. Nf3 {[%clk 0:01:02]}  Kg7 {[%clk 0:00:49]} 40. Rd6 {[%clk 0:01:02]}  Ra5 {[%clk 0:00:36]} 41. Nd4 {[%clk 0:00:59]}  Kh7 {[%clk 0:00:33]} 42. Kh4 {[%clk 0:00:55]}  Kg7 {[%clk 0:00:32]} 43. g4 {[%clk 0:00:54]}  h5 {[%clk 0:00:26]} 44. Nf5+ {[%clk 0:00:52]}  Kh7 {[%clk 0:00:26]} 45. Kxh5 {[%clk 0:00:52]}  Ra1 {[%clk 0:00:22]} 46. Rd7 {[%clk 0:00:51]}  Kg8 {[%clk 0:00:16]} 47. Nh6+ {[%clk 0:00:51]}  Kh8 {[%clk 0:00:17]} 48. Nxf7+ {[%clk 0:00:50]}  Kg8 {[%clk 0:00:17]} 49. Nh6+ {[%clk 0:00:50]}  Kh8 {[%clk 0:00:17]} 50. Nf5 {[%clk 0:00:51]}  Ra6 {[%clk 0:00:15]} 51. g5 {[%clk 0:00:51]}  Ra1 {[%clk 0:00:12]} 52. Kg6 {[%clk 0:00:49]}  Ra6+ {[%clk 0:00:12]} 53. Nd6 {[%clk 0:00:50]}  Ra8 {[%clk 0:00:10]} 54. Rd8+ {[%clk 0:00:50]}  Rxd8 {[%clk 0:00:09]} 55. Nf7+ {[%clk 0:00:51]}  Kg8 {[%clk 0:00:10]} 56. Nxd8 {[%clk 0:00:52]}  Kh8 {[%clk 0:00:10]} 57. Nf7+ {[%clk 0:00:51]}  Kg8 {[%clk 0:00:10]} 58. Kf6 {[%clk 0:00:52]}  Kf8 {[%clk 0:00:10]} 59. g6 {[%clk 0:00:52]}  Kg8 {[%clk 0:00:11]} 60. Nh6+ {[%clk 0:00:53]}  Kh8 {[%clk 0:00:09]} 61. g7+ {[%clk 0:00:53]} 1-0

[Event "January 9 Early 2024"]
[Site "https://www.chess.com"]
[Date "2024.01.11"]
[Round "5"]
[White "Osmak, Yuliia"]
[Black "Bodnaruk, Anastasia"]
[Result "0-1"]
[Board "177"]
[TimeControl "180+1"]
[WhiteFideId "14101602"]
[BlackFideId "4181751"]
[WhiteElo "2514"]
[BlackElo "2557"]
[WhiteTeam "UKR"]
[BlackTeam "RUS"]
[WhiteClock "0:00:05"]
[BlackClock "0:00:22"]

1. e4 {[%clk 0:03:00]}  c5 {[%clk 0:02:56]} 2. Nf3 {[%clk 0:03:01]}  d6 {[%clk 0:02:56]} 3. Bb5+ {[%clk 0:03:01]}  Bd7 {[%clk 0:02:55]} 4. Bxd7+ {[%clk 0:03:00]}  Qxd7 {[%clk 0:02:55]} 5. c4 {[%clk 0:03:01]}  Nf6 {[%clk 0:02:55]} 6. Nc3 {[%clk 0:03:00]}  g6 {[%clk 0:02:55]} 7. d4 {[%clk 0:02:59]}  cxd4 {[%clk 0:02:55]} 8. Nxd4 {[%clk 0:03:00]}  Bg7 {[%clk 0:02:55]} 9. Be3 {[%clk 0:02:59]}  Nc6 {[%clk 0:02:55]} 10. f3 {[%clk 0:02:57]}  O-O {[%clk 0:02:50]} 11. O-O {[%clk 0:02:31]}  e6 {[%clk 0:02:50]} 12. Rc1 {[%clk 0:02:19]}  Rac8 {[%clk 0:02:47]} 13. Nxc6 {[%clk 0:02:09]}  bxc6 {[%clk 0:02:41]} 14. Qd3 {[%clk 0:02:06]}  Rfd8 {[%clk 0:02:33]} 15. Rfd1 {[%clk 0:02:04]}  Qb7 {[%clk 0:02:33]} 16. b3 {[%clk 0:01:56]}  d5 {[%clk 0:02:19]} 17. Bg5 {[%clk 0:01:38]}  Qb6+ {[%clk 0:02:16]} 18. Kh1 {[%clk 0:01:35]}  dxe4 {[%clk 0:02:07]} 19. Qf1 {[%clk 0:01:30]}  Rxd1 {[%clk 0:02:03]} 20. Rxd1 {[%clk 0:01:28]}  exf3 {[%clk 0:01:52]} 21. Qxf3 {[%clk 0:01:28]}  Ne8 {[%clk 0:01:35]} 22. Rd7 {[%clk 0:01:23]}  f5 {[%clk 0:01:33]} 23. Na4 {[%clk 0:01:11]}  Qa5 {[%clk 0:01:28]} 24. Bd2 {[%clk 0:01:09]}  Qe5 {[%clk 0:01:16]} 25. Bc3 {[%clk 0:01:08]}  Qe4 {[%clk 0:01:16]} 26. Qxe4 {[%clk 0:01:07]}  fxe4 {[%clk 0:01:16]} 27. Rxa7 {[%clk 0:00:59]}  e3 {[%clk 0:01:07]} 28. Kg1 {[%clk 0:00:57]}  Rd8 {[%clk 0:00:53]} 29. Kf1 {[%clk 0:00:57]}  Bxc3 {[%clk 0:00:31]} 30. Nxc3 {[%clk 0:00:56]}  Rd2 {[%clk 0:00:32]} 31. Ne4 {[%clk 0:00:45]}  Rb2 {[%clk 0:00:29]} 32. Re7 {[%clk 0:00:27]}  Ng7 {[%clk 0:00:28]} 33. Nf6+ {[%clk 0:00:25]}  Kf8 {[%clk 0:00:28]} 34. Ra7 {[%clk 0:00:22]}  Rf2+ {[%clk 0:00:28]} 35. Ke1 {[%clk 0:00:21]}  Rxf6 {[%clk 0:00:29]} 36. Ke2 {[%clk 0:00:21]}  Rf2+ {[%clk 0:00:27]} 37. Kxe3 {[%clk 0:00:21]}  Rxg2 {[%clk 0:00:27]} 38. Ke4 {[%clk 0:00:17]}  Re2+ {[%clk 0:00:26]} 39. Kd4 {[%clk 0:00:16]}  e5+ {[%clk 0:00:24]} 40. Kc5 {[%clk 0:00:15]}  e4 {[%clk 0:00:25]} 41. Kd6 {[%clk 0:00:11]}  e3 {[%clk 0:00:23]} 42. Kxc6 {[%clk 0:00:07]}  Rd2 {[%clk 0:00:22]} 43. Ra8+ {[%clk 0:00:05]}  Kf7 {[%clk 0:00:22]} 44. Ra7+ {[%clk 0:00:05]}  Kf6 {[%clk 0:00:22]} 0-1

[Event "January 9 Early 2024"]
[Site "https://www.chess.com"]
[Date "2024.01.11"]
[Round "5"]
[White "Gevorgyan, Maria"]
[Black "Kotlyar, Kirill"]
[Result "0-1"]
[Board "178"]
[TimeControl "180+1"]
[WhiteFideId "13300270"]
[BlackFideId "24145599"]
[WhiteElo "2428"]
[BlackElo "2591"]
[WhiteTeam "ARM"]
[BlackTeam "RUS"]
[WhiteClock "0:00:24"]
[BlackClock "0:00:16"]

1. e4 {[%clk 0:03:00]}  e5 {[%clk 0:02:57]} 2. Nf3 {[%clk 0:02:59]}  Nc6 {[%clk 0:02:52]} 3. Bc4 {[%clk 0:02:55]}  Nf6 {[%clk 0:02:51]} 4. Ng5 {[%clk 0:02:53]}  d5 {[%clk 0:02:51]} 5. exd5 {[%clk 0:02:54]}  Na5 {[%clk 0:02:51]} 6. Bb5+ {[%clk 0:02:55]}  c6 {[%clk 0:02:52]} 7. dxc6 {[%clk 0:02:56]}  bxc6 {[%clk 0:02:53]} 8. Qf3 {[%clk 0:02:56]}  Bb7 {[%clk 0:02:32]} 9. Ba4 {[%clk 0:02:54]}  Be7 {[%clk 0:02:22]} 10. O-O {[%clk 0:02:50]}  O-O {[%clk 0:02:21]} 11. d3 {[%clk 0:02:50]}  Nd7 {[%clk 0:02:01]} 12. Qh5 {[%clk 0:02:35]}  h6 {[%clk 0:01:43]} 13. Nf3 {[%clk 0:02:28]}  Nc5 {[%clk 0:01:29]} 14. Bb3 {[%clk 0:02:20]}  Naxb3 {[%clk 0:01:29]} 15. axb3 {[%clk 0:02:20]}  f6 {[%clk 0:01:27]} 16. Nh4 {[%clk 0:02:16]}  Qe8 {[%clk 0:01:08]} 17. Qf3 {[%clk 0:02:05]}  Ne6 {[%clk 0:01:05]} 18. Nc3 {[%clk 0:01:50]}  Nd4 {[%clk 0:01:03]} 19. Qg3 {[%clk 0:01:47]}  Qh5 {[%clk 0:00:51]} 20. Ra4 {[%clk 0:01:38]}  c5 {[%clk 0:00:49]} 21. Be3 {[%clk 0:01:34]}  Bc6 {[%clk 0:00:48]} 22. Ra6 {[%clk 0:01:29]}  Bb7 {[%clk 0:00:45]} 23. Ra4 {[%clk 0:01:29]}  Bd6 {[%clk 0:00:34]} 24. Bxd4 {[%clk 0:01:23]}  cxd4 {[%clk 0:00:30]} 25. Ne4 {[%clk 0:01:23]}  Bxe4 {[%clk 0:00:29]} 26. dxe4 {[%clk 0:01:23]}  Rfe8 {[%clk 0:00:23]} 27. Nf5 {[%clk 0:01:22]}  Bf8 {[%clk 0:00:24]} 28. h3 {[%clk 0:01:20]}  Rec8 {[%clk 0:00:23]} 29. Rfa1 {[%clk 0:01:15]}  Rc7 {[%clk 0:00:22]} 30. Ra6 {[%clk 0:01:04]}  Kh7 {[%clk 0:00:21]} 31. Nxd4 {[%clk 0:01:02]}  Qf7 {[%clk 0:00:20]} 32. Ne6 {[%clk 0:00:53]}  Rxc2 {[%clk 0:00:18]} 33. Nxf8+ {[%clk 0:00:53]}  Qxf8 {[%clk 0:00:19]} 34. Rxa7 {[%clk 0:00:48]}  Rac8 {[%clk 0:00:17]} 35. Kh2 {[%clk 0:00:41]}  R8c7 {[%clk 0:00:17]} 36. Rxc7 {[%clk 0:00:40]}  Rxc7 {[%clk 0:00:18]} 37. Ra6 {[%clk 0:00:34]}  Qc8 {[%clk 0:00:17]} 38. b4 {[%clk 0:00:29]}  Qxa6 {[%clk 0:00:16]} 39. Qg4 {[%clk 0:00:26]}  Qc6 {[%clk 0:00:16]} 40. Qf5+ {[%clk 0:00:26]}  Kg8 {[%clk 0:00:16]} 41. Qg6 {[%clk 0:00:24]}  Rc8 {[%clk 0:00:16]} 42. Qf5 {[%clk 0:00:24]}  Rb8 {[%clk 0:00:16]} 0-1

[Event "January 9 Early 2024"]
[Site "https://www.chess.com"]
[Date "2024.01.11"]
[Round "5"]
[White "Saim, Mohamed Ilias"]
[Black "Bogaudinov, Rushan"]
[Result "0-1"]
[Board "179"]
[TimeControl "180+1"]
[WhiteFideId "7900465"]
[BlackFideId "4129288"]
[WhiteElo "2103"]
[BlackElo "2387"]
[WhiteTeam "ALG"]
[BlackTeam "RUS"]
[WhiteClock "0:00:01"]
[BlackClock "0:00:58"]

1. d4 {[%clk 0:02:59]}  Nf6 {[%clk 0:02:16]} 2. Bg5 {[%clk 0:02:59]}  e6 {[%clk 0:02:17]} 3. Nd2 {[%clk 0:02:56]}  Be7 {[%clk 0:02:18]} 4. e3 {[%clk 0:02:55]}  d5 {[%clk 0:02:18]} 5. Bd3 {[%clk 0:02:52]}  b6 {[%clk 0:02:18]} 6. f4 {[%clk 0:02:50]}  Bb7 {[%clk 0:02:18]} 7. Qf3 {[%clk 0:02:50]}  c5 {[%clk 0:02:18]} 8. c3 {[%clk 0:02:50]}  Nbd7 {[%clk 0:02:18]} 9. Nh3 {[%clk 0:02:48]}  Ne4 {[%clk 0:02:18]} 10. Nxe4 {[%clk 0:02:40]}  dxe4 {[%clk 0:02:19]} 11. Bxe4 {[%clk 0:02:40]}  Bxe4 {[%clk 0:02:19]} 12. Qxe4 {[%clk 0:02:40]}  O-O {[%clk 0:02:18]} 13. Bxe7 {[%clk 0:02:23]}  Qxe7 {[%clk 0:02:18]} 14. O-O {[%clk 0:02:11]}  Nf6 {[%clk 0:02:18]} 15. Qf3 {[%clk 0:02:10]}  h6 {[%clk 0:02:18]} 16. Nf2 {[%clk 0:01:58]}  Rac8 {[%clk 0:02:17]} 17. Rae1 {[%clk 0:01:55]}  a5 {[%clk 0:02:16]} 18. g4 {[%clk 0:01:48]}  Nh7 {[%clk 0:02:10]} 19. Kh1 {[%clk 0:01:46]}  a4 {[%clk 0:02:10]} 20. a3 {[%clk 0:01:45]}  b5 {[%clk 0:02:09]} 21. dxc5 {[%clk 0:01:42]}  Qxc5 {[%clk 0:02:09]} 22. Ne4 {[%clk 0:01:38]}  Qc6 {[%clk 0:02:05]} 23. Rd1 {[%clk 0:01:34]}  f5 {[%clk 0:01:55]} 24. gxf5 {[%clk 0:01:27]}  exf5 {[%clk 0:01:55]} 25. Nd6 {[%clk 0:01:00]}  Qxf3+ {[%clk 0:01:49]} 26. Rxf3 {[%clk 0:01:01]}  Rc5 {[%clk 0:01:49]} 27. e4 {[%clk 0:00:54]}  fxe4 {[%clk 0:01:43]} 28. Nxe4 {[%clk 0:00:55]}  Rcf5 {[%clk 0:01:40]} 29. Nd6 {[%clk 0:00:47]}  Rxf4 {[%clk 0:01:34]} 30. Rxf4 {[%clk 0:00:47]}  Rxf4 {[%clk 0:01:35]} 31. Nxb5 {[%clk 0:00:47]}  Rf2 {[%clk 0:01:35]} 32. Rd4 {[%clk 0:00:35]}  Ng5 {[%clk 0:01:34]} 33. Kg1 {[%clk 0:00:25]}  Rxb2 {[%clk 0:01:31]} 34. Rxa4 {[%clk 0:00:24]}  Rxb5 {[%clk 0:01:27]} 35. Rb4 {[%clk 0:00:18]}  Rd5 {[%clk 0:01:24]} 36. a4 {[%clk 0:00:17]}  Rd3 {[%clk 0:01:23]} 37. Rc4 {[%clk 0:00:16]}  Rd2 {[%clk 0:01:21]} 38. a5 {[%clk 0:00:15]}  Ra2 {[%clk 0:01:21]} 39. Rc5 {[%clk 0:00:15]}  Ne4 {[%clk 0:01:20]} 40. Rc4 {[%clk 0:00:14]}  Nd2 {[%clk 0:01:15]} 41. Rc5 {[%clk 0:00:12]}  Kh7 {[%clk 0:01:11]} 42. c4 {[%clk 0:00:10]}  Nb3 {[%clk 0:01:10]} 43. Rb5 {[%clk 0:00:08]}  Nxa5 {[%clk 0:01:10]} 44. c5 {[%clk 0:00:09]}  Nc6 {[%clk 0:01:07]} 45. Rb6 {[%clk 0:00:08]}  Ne5 {[%clk 0:01:06]} 46. Re6 {[%clk 0:00:08]}  Nd3 {[%clk 0:01:05]} 47. c6 {[%clk 0:00:07]}  Rc2 {[%clk 0:01:05]} 48. Kf1 {[%clk 0:00:07]}  Nb4 {[%clk 0:01:03]} 49. h4 {[%clk 0:00:03]}  Rxc6 {[%clk 0:01:03]} 50. Re4 {[%clk 0:00:02]}  Nd3 {[%clk 0:01:03]} 51. h5 {[%clk 0:00:03]}  Rf6+ {[%clk 0:01:02]} 52. Kg1 {[%clk 0:00:03]}  Nf4 {[%clk 0:01:02]} 53. Kh1 {[%clk 0:00:02]}  Nxh5 {[%clk 0:01:02]} 54. Re7 {[%clk 0:00:03]}  Kg6 {[%clk 0:01:01]} 55. Kh2 {[%clk 0:00:03]}  Rf7 {[%clk 0:00:59]} 56. Re6+ {[%clk 0:00:03]}  Nf6 {[%clk 0:00:59]} 57. Kh3 {[%clk 0:00:03]}  Ra7 {[%clk 0:00:59]} 58. Re8 {[%clk 0:00:02]}  Ra3+ {[%clk 0:00:59]} 59. Kh4 {[%clk 0:00:02]}  Ra4+ {[%clk 0:00:58]} 60. Kh3 {[%clk 0:00:01]}  h5 {[%clk 0:00:58]} 0-1